Workbook

Sheet Présentation
F13: Taille des fenêtres | G13: 0.8

Sheet Impression
C1: CALCULETTE version 2.4 du 11/04/2018
D3: Date : | E3: =TODAY() -> 2018-07-02
A5: CALCULS SIMPLIFIES DES ÉCHAFAUDAGES FIXES DE FAÇADE A L'EUROCODE
A7: Les calculs ont été réalisés à partir d'un logiciel édité par le Syndicat Français de l'Échafaudage.
A8: La méthode de calcul utilisée est une méthode simplifiée adaptée aux chantiers courants à défaut de données du constructeur.
A9: Les valeurs des efforts aux ancrages sont indicatives et ont pour objet de faciliter la prédétermination
A10: du type et de la résistance des ancrages.
A11: Les résultats sont à comparer aux valeurs (charges ultimes) indiquées par le fabricant de chevilles en fonction du matériau d'accueil.
A12: Le nombre d'ancrages ne comprend pas les ancrages supplémentaires à prévoir en périphérie.
A13: Ce document ne constitue pas un justificatif de la stabilité de l'échafaudage et de ce fait il ne peut pas être communiqué à des tiers.
A14: Il convient de se référer en priorité aux données du constructeur de l'échafaudage.
A15: Définition de l'échafaudage
A17: Longueur trame 1 | B17: 3 | C17: m
A18: Longueur trame 2 | B18: 3 | C18: m
A19: Largeur échafaudage | B19: 1 | C19: m
A20: Hauteur totale échafaudage | B20: 5 | C20: m
A21: Hauteur du dernier plancher | B21: 4 | C21: m
A22: Nombre total de niveaux de 2.00 m | B22: 1
A23: Hauteur niveau de départ | B23: 2 | C23: m
A24: Nombre de niveaux de console(s) | B24: 0
A25: Largeur console | C25: =IF(B25<>"","m","") -> 
A26: Vent
A28: Région de vent | B28: 2
A29: Échafaudage | B29: non recouvert
A30: Ouvrage | B30: fermé
A31: Coefficient de saison | B31: 1
A32: Coefficient de probabilité | B32: 1
A33: Catégorie de terrain | B33: IIIb
A34: Coefficient d'orographie | B34: 1.15
A35: φE | B35: 0.25
A36: Ct | B36: 0.325
A37: Pression dynamique de pointe | B37: 62.57 | C37: daN/m²
A38: Chargement
A40: Altitude du calcul | B40: 9 | C40: m
A41: Poids poteau extérieur | B41: 40.06 | C41: daN/m linéaire
A42: Poids poteau intérieur | B42: 26.61 | C42: daN/m linéaire
A43: Poids console + plateau | C43: =IF(B43<>"","daN/niveau","") -> 
A44: Classe | B44: 3
A45: Charge d'exploitation | B45: 200 | C45: daN/m²
A46: Résultats
A48: Descente de charge
A49: Poteau extérieur 1.35 G + 1.5 Q | B49: 945.405 | C49: daN à ELU
A50: Poteau intérieur 1.35 G + 1.5 Q | B50: 854.6175 | C50: daN à ELU
A51: Poteau extérieur G + Q | B51: 650.3 | C51: daN à ELS
A52: Poteau intérieur G + Q | B52: 583.05 | C52: daN à ELS
A53: Efforts dans les ancrages
A54: Effort perpendiculaire à la façade 1.5 W | B54: 183.01725 | C54: daN à ELU pour | D54: 24 | E54: m²
A55: Effort perpendiculaire à la façade W | B55: 122.0115 | C55: daN à ELS pour | D55: 24 | E55: m²
A58: VÉRIFIER avec le maître d'œuvre (le donneur d'ordre)
A59: - que la résistance des appuis ou de l'ouvrage est compatible avec la descente de charge.
A60: - que la résistance des ancrages est compatible avec le matériau d'accueil des fixations.

Sheet Aide
A1: CALCULETTE EUROCODE
A5: ACCUEIL
B40: Cliquer sur BONJOUR ! | D40: pour démarrer la calculette.
B44: L'action de cliquer sur le bouton BONJOUR !
C46: vous permet d'accéder à la phase CALCULS
A63: PRÉAMBULE
A66: La fenêtre suivante ci-dessous nous demande d’accepter ou non les clauses d’utilisation
A67: de cette calculette.
A119: PHASE CALCULS
A121: Nous arrivons maintenant dans la fenêtre principale de la calculette.
A123: A l’ouverture, la fenêtre calcul se présente comme ci-dessous.
A152: Nous allons devoir renseigner la première fenêtre appelée définition de l’échafaudage.
A154: Quand nous cliquons sur le
A155: point d’interrogation, on obtient
A156: une fenêtre d’information.
A176: Quand nous cliquons sur les boutons option, on obtient la modification des valeurs et des dessins
A177: situés dans la fenêtre en haut à droite.
A200: Lorsque le bouton option Non recouvert est coché, les type 1 et type 2 sont accessibles.
A201: Lorsque les boutons option Bâche ou Filet sont cochés, seul le type 2 est accessible.
A203: Choisir le type d’ancrage souhaité en cliquant sur le bouton option type 1 ou type 2.
F247: Quand nous cliquons sur le bouton
F248: dans la fenêtre Région de vent,
F249: nous obtenons une fenêtre où
F250: apparaissent les différentes régions.
F262: Quand nous cliquons sur le bouton
F263: dans la fenêtre Coefficient de saison,
F264: nous obtenons une fenêtre ou
F265: apparaissent les coefficients.
F266: Relevez la valeur du coefficient.
A274: Par défaut, le bouton option > 1 an est coché, soit un coefficient de probabilité de 1 est affiché.
A275: Choisir votre durée du chantier.
A305: Quand nous cliquons sur le bouton dans la fenêtre Catégories de terrain, on obtient une fenêtre
A306: où apparaissent les différentes catégories.
A307: Choisir la catégorie concernée, puis cliquer sur le bouton option correspondant dans la fenêtre
A308: principale.
A333: Quand nous cliquons sur le bouton dans la fenêtre Orographie du terrain, on obtient une fenêtre
A334: où apparait une grille permettant de saisir les altitudes nécessaires au calcul.
A391: La valeur de Coz est de 1.15 par défaut, et ne peut jamais être inférieure à 1.
A395: ESTIMATION DE LA DESCENTE DE CHARGE
A425: Saisir les poids propre des composants de l’échafaudage afin d’estimer les descentes de charges.
A456: IMPRESSION DES RÉSULTATS

Sheet Sauvegarde (hidden)
A1: Menu Calculs | B1: Valeur | D1: Orographie | E1: Valeur | G1: Poids Matériel | H1: Valeur | I1: CALCULETTE version 2.0 du 17/12/2014
A2: Label94 | B2: TRUE | D2: TextBox75 | E2: Ae2 | G2: TextBox_PlintheTR2 | H2: 5.86
A3: Label3 | B3: TRUE | D3: TextBox69 | E3: An2 | G3: TextBox_MoiseTR1 | H3: 11.32
A4: Label7 | B4: TRUE | D4: TextBox68 | E4: An1 | G4: TextBox_MoiseTR2 | H4: 11.32
A5: OptionButton_region1 | B5: FALSE | D5: TextBox67 | E5: Ac | G5: TextBox_PlancherTotTR2 | H5: 58.05
A6: OptionButton_region2 | B6: TRUE | D6: TextBox70 | E6: As1 | G6: TextBox_GcorpsTR1 | H6: 15.65
A7: OptionButton_region3 | B7: FALSE | D7: TextBox71 | E7: As2 | G7: TextBox_PlancherTotTR1 | H7: 58.05
A8: OptionButton_region4 | B8: FALSE | D8: TextBox72 | E8: Ao1 | G8: TextBox_GcorpsTR2 | H8: 15.65
A9: Label16 | B9: TRUE | D9: TextBox73 | E9: Ao2 | G9: TextBox_PlintheTR1 | H9: 5.86
A10: Label15 | B10: TRUE | D10: TextBox74 | E10: Ae1 | G10: TextBox_PiedARml | H10: 40.06
A11: TextBox_vitesse_vent_ms | B11: 24 | D11: TextBox_Ac | E11: 0 | G11: TextBox_PiedAVml | H11: 26.61
A12: TextBox_vitesse_vent_ms | B12: TRUE | D12: TextBox_An2 | E12: 0 | G12: TextBox_PoidsConsole | H12: 0
A13: TextBox_vitesse_vent_ms | B13: TRUE | D13: TextBox_An1 | E13: 0 | G13: TextBox_PlancherTotConsoleTR2 | H13: 0
A14: Label20 | B14: TRUE | D14: TextBox_As1 | E14: 0 | G14: TextBox_PlancherTotConsoleTR1 | H14: 0
A15: Label25 | B15: TRUE | D15: TextBox_As2 | E15: 0 | G15: OptionButton_GC_Avant_oui | H15: FALSE
A16: Label32 | B16: TRUE | D16: TextBox_Ao1 | E16: 0 | G16: OptionButton_GC_Avant_non | H16: TRUE
A17: TextBox15 | D17: TextBox_Ao2 | E17: 0 | G17: TextBox_Ptotal1niveauConsole
A18: TextBox15 | B18: TRUE | D18: TextBox_Ae1 | E18: 0 | G18: TextBox_MoiseTrans | H18: 6.56
A19: TextBox15 | B19: TRUE | D19: TextBox_Ae2 | E19: 0 | G19: TextBox_Pot200 | H19: 9.6
A20: TextBox_hauteur_totale | B20: 5 | D20: TextBox_DeltaAc | E20: 0 | G20: TextBox_lo | H20: 3
A21: TextBox_hauteur_totale | B21: TRUE | G21: TextBox_l1 | H21: 3
A22: TextBox_hauteur_totale | B22: TRUE | G22: TextBox_Larg_ech | H22: 1
A23: OptionButton_nonrecouvert | B23: TRUE | G23: TextBox_LgrConsole | H23: 0
A24: OptionButton_bache | B24: FALSE | G24: TextBox_DiagonaleTR2 | H24: 0
A25: OptionButton_filet | B25: FALSE | G25: TextBox_DiagonaleTR1 | H25: 10.76
A26: TextBox_cadre_2_image
A27: TextBox_cadre_2_image | B27: TRUE
A28: TextBox_cadre_2_image | B28: TRUE
A29: OptionButton_ouvrage_ferme | B29: TRUE
A30: OptionButton_ouvrage_ouvert_30 | B30: FALSE
A31: TextBox_Qpz | B31: 62.57
A32: TextBox_Qpz | B32: TRUE
A33: TextBox_Qpz | B33: TRUE
A34: Label188 | B34: TRUE
A35: TextBox_duree_du_chantier | B35: 1
A36: TextBox_duree_du_chantier | B36: TRUE
A37: TextBox_duree_du_chantier | B37: TRUE
A38: OptionButton_0 | B38: FALSE
A39: OptionButton_II | B39: FALSE
A40: OptionButton_IIIa | B40: FALSE
A41: OptionButton_IIIb | B41: TRUE
A42: Label192 | B42: TRUE
A43: TextBox_Z0 | B43: 0.5
A44: TextBox_Z0 | B44: TRUE
A45: TextBox_Z0 | B45: TRUE
A46: OptionButton_IV | B46: FALSE
A47: TextBox_Zmin | B47: 9
A48: TextBox_Zmin | B48: TRUE
A49: TextBox_Zmin | B49: TRUE
A50: Label193 | B50: TRUE
A51: TextBox14
A52: TextBox14 | B52: TRUE
A53: TextBox14 | B53: TRUE
A54: OptionButton_ouvrage_ouvert_50 | B54: FALSE
A55: Label196 | B55: TRUE
A56: TextBox_type_batiment | B56: Bâtiment Fermé
A57: TextBox_type_batiment | B57: TRUE
A58: TextBox_type_batiment | B58: TRUE
A59: TextBox_Ouvrage
A60: TextBox_Ouvrage | B60: TRUE
A61: TextBox_Ouvrage | B61: TRUE
A62: OptionButton_ouvrage_ouvert_plus_5 | B62: FALSE
A63: TextBox_phib | B63: 1
A64: TextBox_phib | B64: TRUE
A65: TextBox_phib | B65: TRUE
A66: Label_Ouvrage | B66: TRUE
A67: Label200 | B67: TRUE
A68: TextBox_Z_calcul_info | B68: 9
A69: TextBox_Z_calcul_info | B69: TRUE
A70: TextBox_Z_calcul_info | B70: TRUE
A71: Label201 | B71: TRUE
A72: Label206 | B72: TRUE
A73: Label207 | B73: TRUE
A74: TextBox_HtrDernier | B74: 4
A75: TextBox_HtrDernier | B75: TRUE
A76: TextBox_HtrDernier | B76: TRUE
A77: Label209 | B77: TRUE
A78: TextBox_NbreNivPlanchers200 | B78: 1
A79: TextBox_NbreNivPlanchers200 | B79: TRUE
A80: TextBox_NbreNivPlanchers200 | B80: TRUE
A81: Label210 | B81: TRUE
A82: Label211 | B82: TRUE
A83: TextBox_kr | B83: 0.223
A84: TextBox_kr | B84: TRUE
A85: TextBox_kr | B85: TRUE
A86: Label212 | B86: TRUE
A87: TextBox_Z_calcul | B87: 9
A88: TextBox_Z_calcul | B88: TRUE
A89: TextBox_Z_calcul | B89: TRUE
A90: TextBox_Coz | B90: 1.15
A91: TextBox_Coz | B91: TRUE
A92: TextBox_Coz | B92: TRUE
A93: Label_Coz | B93: TRUE
A94: TextBox_PiedAVml | B94: 26.61
A95: TextBox_PiedAVml | B95: TRUE
A96: TextBox_PiedAVml | B96: TRUE
A97: Label149 | B97: TRUE
A98: Label150 | B98: TRUE
A99: Label161 | B99: TRUE
A100: TextBox_PiedARml | B100: 40.06
A101: TextBox_PiedARml | B101: TRUE
A102: TextBox_PiedARml | B102: TRUE
A103: Label162 | B103: TRUE
A104: Label163 | B104: TRUE
A105: TextBox_Ptotal1niveauConsole | B105: 0
A106: TextBox_Ptotal1niveauConsole | B106: TRUE
A107: TextBox_Ptotal1niveauConsole | B107: FALSE
A108: Label214 | B108: TRUE
A109: OptionButton_classe2 | B109: FALSE
A110: OptionButton_classe3 | B110: TRUE
A111: OptionButton_classe4 | B111: FALSE
A112: OptionButton_classe5 | B112: FALSE
A113: OptionButton_classe6 | B113: FALSE
A114: Label146 | B114: TRUE
A115: TextBox_Surcharge | B115: 200
A116: TextBox_Surcharge | B116: TRUE
A117: TextBox_Surcharge | B117: TRUE
A118: Label148 | B118: TRUE
A119: Label158 | B119: TRUE
A120: TextBox_ExtnormalELU | B120: 945
A121: TextBox_ExtnormalELU | B121: TRUE
A122: TextBox_ExtnormalELU | B122: TRUE
A123: Label159 | B123: TRUE
A124: Label215 | B124: TRUE
A125: Label166 | B125: TRUE
A126: TextBox_IntnormalELU | B126: 855
A127: TextBox_IntnormalELU | B127: TRUE
A128: TextBox_IntnormalELU | B128: TRUE
A129: TextBox_ExtnormalELS | B129: 650
A130: TextBox_ExtnormalELS | B130: TRUE
A131: TextBox_ExtnormalELS | B131: TRUE
A132: TextBox_IntnormalELS | B132: 583
A133: TextBox_IntnormalELS | B133: TRUE
A134: TextBox_IntnormalELS | B134: TRUE
A135: TextBox_NbreNivConsoles | B135: 0
A136: TextBox_NbreNivConsoles | B136: TRUE
A137: TextBox_NbreNivConsoles | B137: TRUE
A138: Label216 | B138: TRUE
A139: Label218 | B139: TRUE
A140: Label219 | B140: TRUE
A141: TextBox_lo | B141: 3
A142: TextBox_lo | B142: TRUE
A143: TextBox_lo | B143: TRUE
A144: Label220 | B144: TRUE
A145: Label221 | B145: TRUE
A146: TextBox_Larg_ech | B146: 1
A147: TextBox_Larg_ech | B147: TRUE
A148: TextBox_Larg_ech | B148: TRUE
A149: TextBox_LgrConsole | B149: 0
A150: TextBox_LgrConsole | B150: TRUE
A151: TextBox_LgrConsole | B151: FALSE
A152: Label222 | B152: TRUE
A153: Label223 | B153: TRUE
A154: Label225 | B154: TRUE
A155: TextBox_EffortAncrageELU | B155: 183
A156: TextBox_EffortAncrageELU | B156: TRUE
A157: TextBox_EffortAncrageELU | B157: TRUE
A158: Label226 | B158: TRUE
A159: Label233 | B159: TRUE
A160: Label234 | B160: TRUE
A161: Label235 | B161: TRUE
A162: TextBox_l1 | B162: 3
A163: TextBox_l1 | B163: TRUE
A164: TextBox_l1 | B164: TRUE
A165: TextBox_Cs | B165: 0.25
A166: TextBox_Cs | B166: TRUE
A167: TextBox_Cs | B167: TRUE
A168: Label_Cs | B168: TRUE
A169: TextBox_Ct | B169: 0.325
A170: TextBox_Ct | B170: TRUE
A171: TextBox_Ct | B171: TRUE
A172: Label_Ct | B172: TRUE
A173: OptionButton_Ancrage_type2 | B173: FALSE
A174: OptionButton_Ancrage_type1 | B174: TRUE
A175: Label241 | B175: TRUE
A176: Label242 | B176: TRUE
A177: TextBox_EffortAncrageELS | B177: 122
A178: TextBox_EffortAncrageELS | B178: TRUE
A179: TextBox_EffortAncrageELS | B179: TRUE
A180: Label224 | B180: TRUE
A181: TextBox92
A182: TextBox92 | B182: TRUE
A183: TextBox92 | B183: TRUE
A184: Label252 | B184: TRUE
A185: Label253 | B185: TRUE
A186: OptionButton_classe1 | B186: FALSE
A187: TextBox_vitesse_vent_kh | B187: 86.4
A188: TextBox_vitesse_vent_kh | B188: TRUE
A189: TextBox_vitesse_vent_kh | B189: TRUE
A190: Label254 | B190: TRUE
A191: Label255 | B191: TRUE
A192: Label256 | B192: TRUE
A193: Label187 | B193: TRUE
A194: TextBox_coefficent_de_saison | B194: 1
A195: TextBox_coefficent_de_saison | B195: TRUE
A196: TextBox_coefficent_de_saison | B196: TRUE
A197: TextBox_HtrNiveauDepart | B197: 2
A198: TextBox_HtrNiveauDepart | B198: TRUE
A199: TextBox_HtrNiveauDepart | B199: TRUE
A200: Label258 | B200: TRUE
... 49 more rows

Sheet Donnees_DDS (hidden)
A1: 1 | B1: =A1+1 -> 2 | C1: =B1+1 -> 3 | D1: 4 | E1: 5 | F1: 6 | G1: 7 | H1: 8 | I1: 9 | J1: 10 | K1: 11 | L1: 12 | M1: 13 | N1: 14
A2: =A1+1 -> 2 | D2: Plancher de 0.19 m | E2: 0 | F2: 5.1 | G2: 6.4 | H2: 8 | I2: 10.4 | J2: 12.76 | K2: 15.6
A3: =A2+1 -> 3 | D3: Plancher de 0.32 m | E3: 0 | F3: 5.8 | G3: 8.4 | H3: 11.6 | I3: 15 | J3: 18 | K3: 21.6
A4: 4 | B4: Montant | C4: 9.6
A5: 5
A6: 6 | B6: Largeur | C6: 1 | D6: =C6 -> 1 | E6: 0 | F6: 0 | G6: 0.732 | H6: 1.088 | I6: 1.572 | J6: =I6*2 -> 3.144
A7: 7 | C7: =MATCH(HLOOKUP($C$6,$F$6:$I$6,1),$F$6:$I$6) -> 2
A8: 8 | B8: U+J | C8: =ROUNDUP(FORECAST($C$6,INDIRECT("L" & $A8 & "C" & 5+ $C$7,0):INDIRECT("L" & $A8 & "C" & 6+ $C$7,0),INDIRECT("L" & $A$6 & "C" & 5+ $C$7,0):INDIRECT("L" & $A$6 & "C" & 6+ $C$7,0)),2) -> 6.56 | D8: 0 | E8: 0 | F8: 0 | G8: =2.9+1.24 -> 4.14 | H8: =5.5+1.85 -> 7.35 | I8: =8.6+2.6 -> 11.2 | J8: =I8*2 -> 22.4
A9: 9
A10: 10 | C10: =MATCH(HLOOKUP($C$11,$F$11:$L$11,1),$F$11:$L$11) -> 6
A11: 11 | B11: Longueur trame1 | C11: 3 | D11: 0 | E11: =$C$11 -> 3 | F11: 0 | G11: 0.732 | H11: 1.088 | I11: 1.572 | J11: 2.072 | K11: 2.572 | L11: 3.072 | M11: =L11*2 -> 6.144
A12: 12 | B12: Longueur trame2 | C12: 3 | D12: 0 | E12: =$C$12 -> 3 | F12: =F11 -> 0 | G12: 0.732 | H12: 1.088 | I12: 1.572 | J12: 2.072 | K12: 2.572 | L12: 3.072 | M12: =L12*2 -> 6.144
A13: 13 | C13: =MATCH(HLOOKUP($C$12,$F$12:$L$12,1),$F$12:$L$12) -> 6
A14: 14 | B14: Moise trame 1 | C14: =ROUNDUP(FORECAST($C$11,INDIRECT("L" & $A14 & "C" & 5+ $C$10,0):INDIRECT("L" & $A14 & "C" & 6+ $C$10,0),INDIRECT("L" & $A$11 & "C" & 5+ $C$10,0):INDIRECT("L" & $A$11 & "C" & 6+ $C$10,0)),2) -> 11.32 | D14: 0 | E14: =$C$11 -> 3 | F14: 0 | G14: 3.9 | H14: 4.3 | I14: 6 | J14: 8 | K14: 9.6 | L14: 11.6 | M14: =L14*2 -> 23.2
A15: 15 | B15: Moise trame 2 | C15: =ROUNDUP(FORECAST($C$12,INDIRECT("L" & $A15 & "C" & 5+ $C$13,0):INDIRECT("L" & $A15 & "C" & 6+ $C$13,0),INDIRECT("L" & $A$12 & "C" & 5+ $C$13,0):INDIRECT("L" & $A$12 & "C" & 6+ $C$13,0)),2) -> 11.32 | D15: 0 | E15: =$C$12 -> 3 | F15: =F14 -> 0 | G15: 3.9 | H15: 4.3 | I15: 6 | J15: 8 | K15: 9.6 | L15: 11.6 | M15: =L15*2 -> 23.2
A16: 16
A17: 17 | B17: GC trame 1 | C17: =ROUNDUP(FORECAST($C$11,INDIRECT("L" & $A17 & "C" & 5+ $C$10,0):INDIRECT("L" & $A17 & "C" & 6+ $C$10,0),INDIRECT("L" & $A$11 & "C" & 5+ $C$10,0):INDIRECT("L" & $A$11 & "C" & 6+ $C$10,0)),2) -> 15.65 | D17: 0 | E17: =$C$11 -> 3 | F17: 0 | G17: 7.7 | H17: 8.7 | I17: 9.8 | J17: 11.4 | K17: 14.7 | L17: 15.8 | M17: =L17*2 -> 31.6
A18: 18 | B18: GC trame 2 | C18: =ROUNDUP(FORECAST($C$12,INDIRECT("L" & $A18 & "C" & 5+ $C$13,0):INDIRECT("L" & $A18 & "C" & 6+ $C$13,0),INDIRECT("L" & $A$12 & "C" & 5+ $C$13,0):INDIRECT("L" & $A$12 & "C" & 6+ $C$13,0)),2) -> 15.65 | D18: 0 | E18: =$C$12 -> 3 | F18: =F17 -> 0 | G18: 7.7 | H18: 8.7 | I18: 9.8 | J18: 11.4 | K18: 14.7 | L18: 15.8 | M18: =L18*2 -> 31.6
A19: 19
A20: 20 | B20: Diagonale trame 1 | C20: =ROUNDUP(FORECAST($C$11,INDIRECT("L" & $A20 & "C" & 5+ $C$10,0):INDIRECT("L" & $A20 & "C" & 6+ $C$10,0),INDIRECT("L" & $A$11 & "C" & 5+ $C$10,0):INDIRECT("L" & $A$11 & "C" & 6+ $C$10,0)),2) -> 10.76 | D20: 0 | E20: =$C$11 -> 3 | F20: 0 | G20: 7.24 | H20: 7.55 | I20: 7.7 | J20: 8.9 | K20: 9.13 | L20: 11.03 | M20: =L20*2 -> 22.06
A21: 21 | B21: Diagonale trame 2 | C21: =ROUNDUP(FORECAST($C$12,INDIRECT("L" & $A21 & "C" & 5+ $C$13,0):INDIRECT("L" & $A21 & "C" & 6+ $C$13,0),INDIRECT("L" & $A$12 & "C" & 5+ $C$13,0):INDIRECT("L" & $A$12 & "C" & 6+ $C$13,0)),2) -> 10.76 | D21: 0 | E21: =$C$12 -> 3 | F21: =F20 -> 0 | G21: 7.24 | H21: 7.55 | I21: 7.7 | J21: 8.9 | K21: 9.13 | L21: 11.03 | M21: =L21*2 -> 22.06
A22: 22
A23: 23 | B23: Plinthe trame 1 | C23: =ROUNDUP(FORECAST($C$11,INDIRECT("L" & $A23 & "C" & 5+ $C$10,0):INDIRECT("L" & $A23 & "C" & 6+ $C$10,0),INDIRECT("L" & $A$11 & "C" & 5+ $C$10,0):INDIRECT("L" & $A$11 & "C" & 6+ $C$10,0)),2) -> 5.86 | D23: 0 | E23: =$C$11 -> 3 | F23: 0 | G23: 1 | H23: 2 | I23: 3 | J23: 4 | K23: 5 | L23: 6 | M23: =L23*2 -> 12
A24: 24 | B24: Plinthe trame 2 | C24: =ROUNDUP(FORECAST($C$12,INDIRECT("L" & $A24 & "C" & 5+ $C$13,0):INDIRECT("L" & $A24 & "C" & 6+ $C$13,0),INDIRECT("L" & $A$12 & "C" & 5+ $C$13,0):INDIRECT("L" & $A$12 & "C" & 6+ $C$13,0)),2) -> 5.86 | D24: 0 | E24: =$C$12 -> 3 | F24: =F23 -> 0 | G24: 1 | H24: 2 | I24: 3 | J24: 4 | K24: 5 | L24: 6 | M24: =L24*2 -> 12
A25: 25
A26: 26 | B26: Plancher trame 1 | C26: =ROUNDUP(FORECAST($C$11,INDIRECT("L" & $A26 & "C" & 5+ $C$10,0):INDIRECT("L" & $A26 & "C" & 6+ $C$10,0),INDIRECT("L" & $A$11 & "C" & 5+ $C$10,0):INDIRECT("L" & $A$11 & "C" & 6+ $C$10,0)),2) -> 58.05 | D26: =D$6 -> 1 | E26: 3 | F26: =ROUNDUP(FORECAST($C$6,INDIRECT("L" & $A26+ $C$7 & "C" & F$1,0):INDIRECT("L" & $A26+ $C$7+1 & "C" & F$1,0),INDIRECT("L" & $A26+ $C$7 & "C" & $D$1,0):INDIRECT("L" & $A26+ $C$7+1 & "C" & $D$1,0)),2) -> 0 | G26: =ROUNDUP(FORECAST($C$6,INDIRECT("L" & $A26+ $C$7 & "C" & G$1,0):INDIRECT("L" & $A26+ $C$7+1 & "C" & G$1,0),INDIRECT("L" & $A26+ $C$7 & "C" & $D$1,0):INDIRECT("L" & $A26+ $C$7+1 & "C" & $D$1,0)),2) -> 15.97 | H26: =ROUNDUP(FORECAST($C$6,INDIRECT("L" & $A26+ $C$7 & "C" & H$1,0):INDIRECT("L" & $A26+ $C$7+1 & "C" & H$1,0),INDIRECT("L" & $A26+ $C$7 & "C" & $D$1,0):INDIRECT("L" & $A26+ $C$7+1 & "C" & $D$1,0)),2) -> 23.13 | I26: =ROUNDUP(FORECAST($C$6,INDIRECT("L" & $A26+ $C$7 & "C" & I$1,0):INDIRECT("L" & $A26+ $C$7+1 & "C" & I$1,0),INDIRECT("L" & $A26+ $C$7 & "C" & $D$1,0):INDIRECT("L" & $A26+ $C$7+1 & "C" & $D$1,0)),2) -> 31.94 | J26: =ROUNDUP(FORECAST($C$6,INDIRECT("L" & $A26+ $C$7 & "C" & J$1,0):INDIRECT("L" & $A26+ $C$7+1 & "C" & J$1,0),INDIRECT("L" & $A26+ $C$7 & "C" & $D$1,0):INDIRECT("L" & $A26+ $C$7+1 & "C" & $D$1,0)),2) -> 41.3 | K26: =ROUNDUP(FORECAST($C$6,INDIRECT("L" & $A26+ $C$7 & "C" & K$1,0):INDIRECT("L" & $A26+ $C$7+1 & "C" & K$1,0),INDIRECT("L" & $A26+ $C$7 & "C" & $D$1,0):INDIRECT("L" & $A26+ $C$7+1 & "C" & $D$1,0)),2) -> 49.56 | L26: =ROUNDUP(FORECAST($C$6,INDIRECT("L" & $A26+ $C$7 & "C" & L$1,0):INDIRECT("L" & $A26+ $C$7+1 & "C" & L$1,0),INDIRECT("L" & $A26+ $C$7 & "C" & $D$1,0):INDIRECT("L" & $A26+ $C$7+1 & "C" & $D$1,0)),2) -> 59.47 | M26: =L26*2 -> 118.94
A27: 27 | B27: =B26 -> Plancher trame 1 | D27: =TRANSPOSE(F6:I6) -> 0 | E27: 3 | F27: 0 | G27: 0 | H27: 0 | I27: 0 | J27: 0 | K27: 0 | L27: 0 | M27: =L27*2 -> 0
A28: 28 | B28: =B27 -> Plancher trame 1 | D28: 0.732 | E28: 3 | F28: =2*E$3 -> 0 | G28: 11.6 | H28: 16.8 | I28: 23.2 | J28: 30 | K28: 36 | L28: 43.2 | M28: =L28*2 -> 86.4
A29: 29 | B29: =B28 -> Plancher trame 1 | D29: 1.088 | E29: 3 | F29: =3*E$3 -> 0 | G29: 17.4 | H29: 25.2 | I29: 34.8 | J29: 45 | K29: 54 | L29: 64.8 | M29: =L29*2 -> 129.6
A30: 30 | B30: =B29 -> Plancher trame 1 | D30: 1.572 | E30: 3 | F30: =4*E$3+E$2 -> 0 | G30: 28.3 | H30: 40 | I30: 54.4 | J30: 70.4 | K30: 84.76 | L30: 102 | M30: =L30*2 -> 204
A31: 31 | D31: =D30*2 -> 3.144 | E31: =E30*2 -> 6 | F31: =F30*2 -> 0 | G31: =G30*2 -> 56.6 | H31: 80 | I31: 108.8 | J31: 140.8 | K31: 169.52 | L31: 204
A32: 32
A33: 33 | B33: Plancher trame 2 | C33: =ROUNDUP(FORECAST($C$12,INDIRECT("L" & $A33 & "C" & 5+ $C$13,0):INDIRECT("L" & $A33 & "C" & 6+ $C$13,0),INDIRECT("L" & $A$12 & "C" & 5+ $C$13,0):INDIRECT("L" & $A$12 & "C" & 6+ $C$13,0)),2) -> 58.05 | D33: =D$6 -> 1 | E33: =$C$12 -> 3 | F33: =ROUNDUP(FORECAST($C$6,INDIRECT("L" & $A33+ $C$7 & "C" & F$1,0):INDIRECT("L" & $A33+ $C$7+1 & "C" & F$1,0),INDIRECT("L" & $A33+ $C$7 & "C" & $D$1,0):INDIRECT("L" & $A33+ $C$7+1 & "C" & $D$1,0)),2) -> 0 | G33: =ROUNDUP(FORECAST($C$6,INDIRECT("L" & $A33+ $C$7 & "C" & G$1,0):INDIRECT("L" & $A33+ $C$7+1 & "C" & G$1,0),INDIRECT("L" & $A33+ $C$7 & "C" & $D$1,0):INDIRECT("L" & $A33+ $C$7+1 & "C" & $D$1,0)),2) -> 15.97 | H33: =ROUNDUP(FORECAST($C$6,INDIRECT("L" & $A33+ $C$7 & "C" & H$1,0):INDIRECT("L" & $A33+ $C$7+1 & "C" & H$1,0),INDIRECT("L" & $A33+ $C$7 & "C" & $D$1,0):INDIRECT("L" & $A33+ $C$7+1 & "C" & $D$1,0)),2) -> 23.13 | I33: =ROUNDUP(FORECAST($C$6,INDIRECT("L" & $A33+ $C$7 & "C" & I$1,0):INDIRECT("L" & $A33+ $C$7+1 & "C" & I$1,0),INDIRECT("L" & $A33+ $C$7 & "C" & $D$1,0):INDIRECT("L" & $A33+ $C$7+1 & "C" & $D$1,0)),2) -> 31.94 | J33: =ROUNDUP(FORECAST($C$6,INDIRECT("L" & $A33+ $C$7 & "C" & J$1,0):INDIRECT("L" & $A33+ $C$7+1 & "C" & J$1,0),INDIRECT("L" & $A33+ $C$7 & "C" & $D$1,0):INDIRECT("L" & $A33+ $C$7+1 & "C" & $D$1,0)),2) -> 41.3 | K33: =ROUNDUP(FORECAST($C$6,INDIRECT("L" & $A33+ $C$7 & "C" & K$1,0):INDIRECT("L" & $A33+ $C$7+1 & "C" & K$1,0),INDIRECT("L" & $A33+ $C$7 & "C" & $D$1,0):INDIRECT("L" & $A33+ $C$7+1 & "C" & $D$1,0)),2) -> 49.56 | L33: =ROUNDUP(FORECAST($C$6,INDIRECT("L" & $A33+ $C$7 & "C" & L$1,0):INDIRECT("L" & $A33+ $C$7+1 & "C" & L$1,0),INDIRECT("L" & $A33+ $C$7 & "C" & $D$1,0):INDIRECT("L" & $A33+ $C$7+1 & "C" & $D$1,0)),2) -> 59.47 | M33: =L33*2 -> 118.94
A34: 34 | B34: =B33 -> Plancher trame 2 | D34: =D27 -> 0 | E34: =$C$12 -> 3 | F34: =F27 -> 0 | G34: 0 | H34: 0 | I34: 0 | J34: 0 | K34: 0 | L34: 0 | M34: =L34*2 -> 0
A35: 35 | B35: =B34 -> Plancher trame 2 | D35: =D28 -> 0.732 | E35: =$C$12 -> 3 | F35: 0 | G35: 11.6 | H35: 16.8 | I35: 23.2 | J35: 30 | K35: 36 | L35: 43.2 | M35: =L35*2 -> 86.4
A36: 36 | B36: =B35 -> Plancher trame 2 | D36: =D29 -> 1.088 | E36: =$C$12 -> 3 | F36: =F29 -> 0 | G36: 17.4 | H36: 25.2 | I36: 34.8 | J36: 45 | K36: 54 | L36: 64.8 | M36: =L36*2 -> 129.6
A37: 37 | B37: =B36 -> Plancher trame 2 | D37: =D30 -> 1.572 | E37: =$C$12 -> 3 | F37: =F30 -> 0 | G37: 28.3 | H37: 40 | I37: 54.4 | J37: 70.4 | K37: 84.76 | L37: 102 | M37: =L37*2 -> 204
A38: 38 | D38: =D37*2 -> 3.144 | E38: =E37*2 -> 6 | F38: =F37*2 -> 0 | G38: 56.6 | H38: 80 | I38: 108.8 | J38: 140.8 | K38: 169.52 | L38: 204
A39: 39
A40: 40
A41: 41 | B41: Largeur console | C41: 0 | D41: =C41 -> 0 | E41: =$C$41 -> 0 | F41: 0 | G41: 0.28 | H41: 0.39 | I41: 0.732 | J41: =I41*2 -> 1.464
A42: 42 | C42: =MATCH(HLOOKUP($C$41,$F$41:$I$41,1),$F$41:$I$41) -> 1
A43: 43 | B43: Plancher console trame 1 | C43: =ROUNDUP(FORECAST($C$11,INDIRECT("L" & $A43 & "C" & 5+ $C$10,0):INDIRECT("L" & $A43 & "C" & 6+ $C$10,0),INDIRECT("L" & $A$11 & "C" & 5+ $C$10,0):INDIRECT("L" & $A$11 & "C" & 6+ $C$10,0)),2) -> 0 | D43: =D$41 -> 0 | E43: =$C$11 -> 3 | F43: =ROUNDUP(FORECAST($C$41,INDIRECT("L" & $A43+ $C$42 & "C" & F$1,0):INDIRECT("L" & $A43+ $C$42+1 & "C" & F$1,0),INDIRECT("L" & $A43+ $C$42 & "C" & $D$1,0):INDIRECT("L" & $A43+ $C$42+1 & "C" & $D$1,0)),2) -> 0 | G43: =ROUNDUP(FORECAST($C$41,INDIRECT("L" & $A43+ $C$42 & "C" & G$1,0):INDIRECT("L" & $A43+ $C$42+1 & "C" & G$1,0),INDIRECT("L" & $A43+ $C$42 & "C" & $D$1,0):INDIRECT("L" & $A43+ $C$42+1 & "C" & $D$1,0)),2) -> 0 | H43: =ROUNDUP(FORECAST($C$41,INDIRECT("L" & $A43+ $C$42 & "C" & H$1,0):INDIRECT("L" & $A43+ $C$42+1 & "C" & H$1,0),INDIRECT("L" & $A43+ $C$42 & "C" & $D$1,0):INDIRECT("L" & $A43+ $C$42+1 & "C" & $D$1,0)),2) -> 0 | I43: =ROUNDUP(FORECAST($C$41,INDIRECT("L" & $A43+ $C$42 & "C" & I$1,0):INDIRECT("L" & $A43+ $C$42+1 & "C" & I$1,0),INDIRECT("L" & $A43+ $C$42 & "C" & $D$1,0):INDIRECT("L" & $A43+ $C$42+1 & "C" & $D$1,0)),2) -> 0 | J43: =ROUNDUP(FORECAST($C$41,INDIRECT("L" & $A43+ $C$42 & "C" & J$1,0):INDIRECT("L" & $A43+ $C$42+1 & "C" & J$1,0),INDIRECT("L" & $A43+ $C$42 & "C" & $D$1,0):INDIRECT("L" & $A43+ $C$42+1 & "C" & $D$1,0)),2) -> 0 | K43: =ROUNDUP(FORECAST($C$41,INDIRECT("L" & $A43+ $C$42 & "C" & K$1,0):INDIRECT("L" & $A43+ $C$42+1 & "C" & K$1,0),INDIRECT("L" & $A43+ $C$42 & "C" & $D$1,0):INDIRECT("L" & $A43+ $C$42+1 & "C" & $D$1,0)),2) -> 0 | L43: =ROUNDUP(FORECAST($C$41,INDIRECT("L" & $A43+ $C$42 & "C" & L$1,0):INDIRECT("L" & $A43+ $C$42+1 & "C" & L$1,0),INDIRECT("L" & $A43+ $C$42 & "C" & $D$1,0):INDIRECT("L" & $A43+ $C$42+1 & "C" & $D$1,0)),2) -> 0 | M43: =L43*2 -> 0
A44: 44 | B44: =B43 -> Plancher console trame 1 | D44: =TRANSPOSE(F41:I41) -> 0 | E44: =$C$11 -> 3 | F44: 0 | G44: 0 | H44: 0 | I44: 0 | J44: 0 | K44: 0 | L44: 0 | M44: =L44*2 -> 0
A45: 45 | B45: =B44 -> Plancher console trame 1 | D45: 0.28 | E45: =$C$11 -> 3 | F45: =E$2 -> 0 | G45: 5.1 | H45: 6.4 | I45: 8 | J45: 10.4 | K45: 12.76 | L45: 15.6 | M45: =L45*2 -> 31.2
A46: 46 | B46: =B45 -> Plancher console trame 1 | D46: 0.39 | E46: =$C$11 -> 3 | F46: =E$3 -> 0 | G46: 5.8 | H46: 8.4 | I46: 11.6 | J46: 15 | K46: 18 | L46: 21.6 | M46: =L46*2 -> 43.2
A47: 47 | B47: =B46 -> Plancher console trame 1 | D47: 0.732 | E47: =$C$11 -> 3 | F47: =2*E$3 -> 0 | G47: 11.6 | H47: 16.8 | I47: 23.2 | J47: 30 | K47: 36 | L47: 43.2 | M47: =L47*2 -> 86.4
A48: 48 | D48: =D47*2 -> 1.464 | E48: 6 | F48: 0 | G48: 23.2 | H48: 33.6 | I48: 46.4 | J48: 60 | K48: 72 | L48: 86.4
A49: 49
A50: 50 | B50: Plancher console trame 2 | C50: =ROUNDUP(FORECAST($C$12,INDIRECT("L" & $A50 & "C" & 5+ $C$13,0):INDIRECT("L" & $A50 & "C" & 6+ $C$13,0),INDIRECT("L" & $A$12 & "C" & 5+ $C$13,0):INDIRECT("L" & $A$12 & "C" & 6+ $C$13,0)),2) -> 0 | D50: =D$41 -> 0 | E50: =$C$12 -> 3 | F50: =ROUNDUP(FORECAST($C$41,INDIRECT("L" & $A50+ $C$42 & "C" & F$1,0):INDIRECT("L" & $A50+ $C$42+1 & "C" & F$1,0),INDIRECT("L" & $A50+ $C$42 & "C" & $D$1,0):INDIRECT("L" & $A50+ $C$42+1 & "C" & $D$1,0)),2) -> 0 | G50: =ROUNDUP(FORECAST($C$41,INDIRECT("L" & $A50+ $C$42 & "C" & G$1,0):INDIRECT("L" & $A50+ $C$42+1 & "C" & G$1,0),INDIRECT("L" & $A50+ $C$42 & "C" & $D$1,0):INDIRECT("L" & $A50+ $C$42+1 & "C" & $D$1,0)),2) -> 0 | H50: =ROUNDUP(FORECAST($C$41,INDIRECT("L" & $A50+ $C$42 & "C" & H$1,0):INDIRECT("L" & $A50+ $C$42+1 & "C" & H$1,0),INDIRECT("L" & $A50+ $C$42 & "C" & $D$1,0):INDIRECT("L" & $A50+ $C$42+1 & "C" & $D$1,0)),2) -> 0 | I50: =ROUNDUP(FORECAST($C$41,INDIRECT("L" & $A50+ $C$42 & "C" & I$1,0):INDIRECT("L" & $A50+ $C$42+1 & "C" & I$1,0),INDIRECT("L" & $A50+ $C$42 & "C" & $D$1,0):INDIRECT("L" & $A50+ $C$42+1 & "C" & $D$1,0)),2) -> 0 | J50: =ROUNDUP(FORECAST($C$41,INDIRECT("L" & $A50+ $C$42 & "C" & J$1,0):INDIRECT("L" & $A50+ $C$42+1 & "C" & J$1,0),INDIRECT("L" & $A50+ $C$42 & "C" & $D$1,0):INDIRECT("L" & $A50+ $C$42+1 & "C" & $D$1,0)),2) -> 0 | K50: =ROUNDUP(FORECAST($C$41,INDIRECT("L" & $A50+ $C$42 & "C" & K$1,0):INDIRECT("L" & $A50+ $C$42+1 & "C" & K$1,0),INDIRECT("L" & $A50+ $C$42 & "C" & $D$1,0):INDIRECT("L" & $A50+ $C$42+1 & "C" & $D$1,0)),2) -> 0 | L50: =ROUNDUP(FORECAST($C$41,INDIRECT("L" & $A50+ $C$42 & "C" & L$1,0):INDIRECT("L" & $A50+ $C$42+1 & "C" & L$1,0),INDIRECT("L" & $A50+ $C$42 & "C" & $D$1,0):INDIRECT("L" & $A50+ $C$42+1 & "C" & $D$1,0)),2) -> 0 | M50: =L50*2 -> 0
A51: 51 | B51: =B50 -> Plancher console trame 2 | D51: =D44 -> 0 | E51: =$C$12 -> 3 | F51: =F44 -> 0 | G51: 0 | H51: 0 | I51: 0 | J51: 0 | K51: 0 | L51: 0 | M51: =L51*2 -> 0
A52: 52 | B52: =B51 -> Plancher console trame 2 | D52: =D45 -> 0.28 | E52: =$C$12 -> 3 | F52: =F45 -> 0 | G52: 5.1 | H52: 6.4 | I52: 8 | J52: 10.4 | K52: 12.76 | L52: 15.6 | M52: =L52*2 -> 31.2
A53: 53 | B53: =B52 -> Plancher console trame 2 | D53: =D46 -> 0.39 | E53: =$C$12 -> 3 | F53: =F46 -> 0 | G53: 5.8 | H53: 8.4 | I53: 11.6 | J53: 15 | K53: 18 | L53: 21.6 | M53: =L53*2 -> 43.2
A54: 54 | B54: =B53 -> Plancher console trame 2 | D54: =D47 -> 0.732 | E54: =$C$12 -> 3 | F54: =F47 -> 0 | G54: 11.6 | H54: 16.8 | I54: 23.2 | J54: 30 | K54: 36 | L54: 43.2 | M54: =L54*2 -> 86.4
A55: 55 | D55: =D54*2 -> 1.464 | E55: 6 | F55: 0 | G55: 23.2 | H55: 33.6 | I55: 46.4 | J55: 60 | K55: 72 | L55: 86.4
A56: 56
A57: =A56+1 -> 57 | B57: Console+J | C57: =ROUND(FORECAST($C$41,INDIRECT("L" & $A57 & "C" & 5+ $C$42,0):INDIRECT("L" & $A57 & "C" & 6+ $C$42,0),INDIRECT("L" & $A$41 & "C" & 5+ $C$42,0):INDIRECT("L" & $A$41 & "C" & 6+ $C$42,0)),2) -> 0 | D57: 0 | E57: 0 | F57: 0 | G57: 3.4 | H57: =4+0.63 -> 4.63 | I57: =6.4+1.24 -> 7.64 | J57: =I57*2 -> 15.28
